[Event "*** Titled Tuesday 3|2 Blitz"]
[Site "Chess.com"]
[Date "2016.05.03"]
[Round "8"]
[White "UltimateCrusher2"]
[Black "chess960now"]
[Result "1/2-1/2"]
[WhiteElo "2095"]
[BlackElo "1984"]
[TimeControl "180+2"]
[EndTime "12:45:41 PDT"]
[Termination "Game drawn by repetition"]

1. b3 {[%clk 0:03:01.9]} 1... d5 {[%clk 0:02:57]} 2. Bb2 {[%clk 0:03:02.5]} 2...
Nf6 {[%clk 0:02:58]} 3. Nf3 {[%clk 0:03:03.2]} 3... Bf5 {[%clk 0:02:58.8]} 4. g3
{[%clk 0:03:03.8]} 4... e6 {[%clk 0:02:58.5]} 5. Bg2 {[%clk 0:03:04.9]} 5... Bd6
{[%clk 0:02:51.6]} 6. O-O {[%clk 0:03:05.5]} 6... O-O {[%clk 0:02:49.5]} 7. d3
{[%clk 0:03:06.8]} 7... c5 {[%clk 0:02:47]} 8. c4 {[%clk 0:03:01.5]} 8... Nc6
{[%clk 0:02:42.8]} 9. Nbd2 {[%clk 0:02:52]} 9... d4 {[%clk 0:02:39.9]} 10. a3
{[%clk 0:02:18.8]} 10... a5 {[%clk 0:02:31.9]} 11. Qc2 {[%clk 0:02:04.1]} 11...
e5 {[%clk 0:02:27.1]} 12. e3 {[%clk 0:02:05.2]} 12... Re8 {[%clk 0:02:20.2]} 13.
e4 {[%clk 0:02:03.3]} 13... Bd7 {[%clk 0:02:14.6]} 14. Nh4 {[%clk 0:02:03.7]}
14... Rb8 {[%clk 0:02:11.4]} 15. Nf5 {[%clk 0:02:04.1]} 15... Bf8 {[%clk
0:02:08.1]} 16. Nf3 {[%clk 0:02:04.4]} 16... g6 {[%clk 0:01:51.5]} 17. N5h4
{[%clk 0:02:02.1]} 17... b5 {[%clk 0:01:34.2]} 18. cxb5 {[%clk 0:01:52.5]} 18...
Rxb5 {[%clk 0:01:34.3]} 19. Nd2 {[%clk 0:01:54.4]} 19... Be6 {[%clk 0:01:24.3]}
20. Rab1 {[%clk 0:01:53]} 20... Qb8 {[%clk 0:01:19.5]} 21. Ba1 {[%clk
0:01:45.7]} 21... Bh6 {[%clk 0:00:57.3]} 22. Nc4 {[%clk 0:01:45]} 22... Nd7
{[%clk 0:00:46.7]} 23. Nf3 {[%clk 0:01:27.3]} 23... Qc7 {[%clk 0:00:45.6]} 24.
Rb2 {[%clk 0:01:23.8]} 24... Reb8 {[%clk 0:00:44.7]} 25. Rfb1 {[%clk 0:01:24.5]}
25... Bf8 {[%clk 0:00:26.9]} 26. Ng5 {[%clk 0:01:23.5]} 26... Bxc4 {[%clk
0:00:22.8]} 27. Qxc4 {[%clk 0:01:25.4]} 27... Nd8 {[%clk 0:00:11.3]} 28. Rf1
{[%clk 0:01:21.9]} 28... R5b7 {[%clk 0:00:11.4]} 29. f4 {[%clk 0:01:21.8]} 29...
Nb6 {[%clk 0:00:11.2]} 30. Qc2 {[%clk 0:01:19.6]} 30... Qd7 {[%clk 0:00:06.9]}
31. fxe5 {[%clk 0:01:13.7]} 31... Bh6 {[%clk 0:00:04]} 32. Nf3 {[%clk 0:01:13]}
32... Be3+ {[%clk 0:00:04.7]} 33. Kh1 {[%clk 0:01:13.7]} 33... a4 {[%clk
0:00:06.1]} 34. b4 {[%clk 0:01:13.2]} 34... c4 {[%clk 0:00:06.2]} 35. dxc4
{[%clk 0:01:13.2]} 35... d3 {[%clk 0:00:08.1]} 36. Qc3 {[%clk 0:01:12.1]} 36...
Ne6 {[%clk 0:00:07.5]} 37. Rd1 {[%clk 0:01:10.7]} 37... Rd8 {[%clk 0:00:07.6]}
38. Rbb1 {[%clk 0:01:07.1]} 38... Rc7 {[%clk 0:00:08.5]} 39. c5 {[%clk
0:01:07.8]} 39... Nc8 {[%clk 0:00:08.7]} 40. Ne1 {[%clk 0:01:06.9]} 40... d2
{[%clk 0:00:07.6]} 41. Nf3 {[%clk 0:01:06.9]} 41... Bh6 {[%clk 0:00:05.3]} 42.
Rb2 {[%clk 0:01:06.1]} 42... Ne7 {[%clk 0:00:05.3]} 43. Nxd2 {[%clk 0:01:04]}
43... Nc6 {[%clk 0:00:05.1]} 44. Bf3 {[%clk 0:01:02.8]} 44... Ncd4 {[%clk
0:00:05.7]} 45. Nc4 {[%clk 0:01:01.6]} 45... Qe8 {[%clk 0:00:05.1]} 46. Nd6
{[%clk 0:01:02.4]} 46... Rxd6 {[%clk 0:00:05.2]} 47. exd6 {[%clk 0:01:02.4]}
47... Nxf3 {[%clk 0:00:05.8]} 48. Qxf3 {[%clk 0:01:02]} 48... Rc8 {[%clk
0:00:05.4]} 49. Rf2 {[%clk 0:01:03]} 49... Ng5 {[%clk 0:00:05.1]} 50. Qf6 {[%clk
0:01:03.9]} 50... Qxe4+ {[%clk 0:00:05.3]} 51. Kg1 {[%clk 0:00:58.7]} 51... Nh3+
{[%clk 0:00:06.4]} 52. Kf1 {[%clk 0:00:58.5]} 52... Qh1+ {[%clk 0:00:06]} 53.
Ke2 {[%clk 0:00:59.1]} 53... Qe4+ {[%clk 0:00:05.7]} 54. Kf1 {[%clk 0:00:54.7]}
54... Qh1+ {[%clk 0:00:06.7]} 55. Ke2 {[%clk 0:00:53]} 55... Qe4+ {[%clk
0:00:06.2]} 56. Kf1 {[%clk 0:00:53.6]} 56... Qh1+ {[%clk 0:00:06.3]} 57. Ke2
{[%clk 0:00:55]} 1/2-1/2

[Event "*** Titled Tuesday 3|2 Blitz"]
[Site "Chess.com"]
[Date "2016.05.03"]
[Round "8"]
[White "Carolina-moon"]
[Black "chesstatour"]
[Result "0-1"]
[WhiteElo "2037"]
[BlackElo "2027"]
[TimeControl "180+2"]
[EndTime "12:45:51 PDT"]
[Termination "chesstatour won by checkmate"]

1. e4 {[%clk 0:03:01.9]} 1... c6 {[%clk 0:02:59.9]} 2. c4 {[%clk 0:03:02.1]}
2... d5 {[%clk 0:02:58.4]} 3. exd5 {[%clk 0:03:04]} 3... cxd5 {[%clk 0:03:00.3]}
4. cxd5 {[%clk 0:03:05]} 4... Nf6 {[%clk 0:02:58.8]} 5. Qa4+ {[%clk 0:03:05.7]}
5... Nbd7 {[%clk 0:02:57.7]} 6. Nc3 {[%clk 0:03:06]} 6... g6 {[%clk 0:02:58.3]}
7. Nf3 {[%clk 0:03:07.1]} 7... Bg7 {[%clk 0:02:59.8]} 8. Bc4 {[%clk 0:03:02.9]}
8... O-O {[%clk 0:03:00.1]} 9. Qb3 {[%clk 0:03:03.9]} 9... Nb6 {[%clk
0:02:42.6]} 10. d3 {[%clk 0:03:04.2]} 10... a5 {[%clk 0:02:40.3]} 11. a4 {[%clk
0:02:55.3]} 11... Qd6 {[%clk 0:02:40.2]} 12. Be3 {[%clk 0:02:52]} 12... Nxc4
{[%clk 0:02:31]} 13. dxc4 {[%clk 0:02:53.1]} 13... Qb4 {[%clk 0:02:07]} 14. Qa2
{[%clk 0:02:09.9]} 14... e6 {[%clk 0:01:49.1]} 15. O-O {[%clk 0:02:05.2]} 15...
exd5 {[%clk 0:01:39.7]} 16. cxd5 {[%clk 0:02:04.6]} 16... Bg4 {[%clk 0:01:35.7]}
17. Rad1 {[%clk 0:02:00.9]} 17... Bxf3 {[%clk 0:01:28.3]} 18. gxf3 {[%clk
0:02:01.3]} 18... Nh5 {[%clk 0:01:22.2]} 19. Ne4 {[%clk 0:01:42.5]} 19... b6
{[%clk 0:01:07.7]} 20. Rd3 {[%clk 0:00:57]} 20... Rfd8 {[%clk 0:00:43.4]} 21.
Rfd1 {[%clk 0:00:50.1]} 21... Rac8 {[%clk 0:00:36.2]} 22. Rb3 {[%clk 0:00:40.5]}
22... Qc4 {[%clk 0:00:34.7]} 23. Rc1 {[%clk 0:00:37.1]} 23... Qxc1+ {[%clk
0:00:28.8]} 24. Bxc1 {[%clk 0:00:37.5]} 24... Rxc1+ {[%clk 0:00:30.3]} 25. Kg2
{[%clk 0:00:39.1]} 25... Nf4+ {[%clk 0:00:30.9]} 26. Kg3 {[%clk 0:00:40.3]}
26... Be5 {[%clk 0:00:29.8]} 27. Rc3 {[%clk 0:00:21.4]} 27... Rg1+ {[%clk
0:00:27.5]} 28. Kh4 {[%clk 0:00:20]} 28... h6 {[%clk 0:00:23.1]} 29. Ng3 {[%clk
0:00:15.1]} 29... f5 {[%clk 0:00:16]} 30. d6+ {[%clk 0:00:12.1]} 30... Kg7
{[%clk 0:00:16.3]} 31. Nxf5+ {[%clk 0:00:12.3]} 31... Kf6 {[%clk 0:00:14.6]} 32.
Ng3 {[%clk 0:00:03.1]} 32... Ng2+ {[%clk 0:00:13.2]} 33. Kh3 {[%clk 0:00:03.8]}
33... Nf4+ {[%clk 0:00:14.2]} 34. Kh4 {[%clk 0:00:04.8]} 34... h5 {[%clk
0:00:13.4]} 35. Nxh5+ {[%clk 0:00:05.1]} 35... gxh5 {[%clk 0:00:14.3]} 36. Rc7
{[%clk 0:00:04.9]} 36... Rf8 {[%clk 0:00:13]} 37. Qb3 {[%clk 0:00:03.8]} 37...
Ng6+ {[%clk 0:00:14]} 38. Kh3 {[%clk 0:00:03.2]} 38... Nf4+ {[%clk 0:00:14.6]}
39. Kh4 {[%clk 0:00:04.5]} 39... Kf5 {[%clk 0:00:13.7]} 40. Qc2+ {[%clk
0:00:04.1]} 40... Kf6 {[%clk 0:00:14.1]} 41. Qh7 {[%clk 0:00:05]} 41... Ng6+
{[%clk 0:00:09.9]} 42. Kh3 {[%clk 0:00:03.9]} 42... Nf4+ {[%clk 0:00:10.6]} 43.
Kh4 {[%clk 0:00:05.2]} 43... Ng6+ {[%clk 0:00:09]} 44. Kh3 {[%clk 0:00:06.4]}
44... Nf4+ {[%clk 0:00:09.3]} 45. Kh4 {[%clk 0:00:07.8]} 45... Ng6+ {[%clk
0:00:07.6]} 46. Kxh5 {[%clk 0:00:07.7]} 46... Rh8 {[%clk 0:00:07.7]} 47. Rf7+
{[%clk 0:00:07.1]} 47... Ke6 {[%clk 0:00:08.7]} 48. Re7+ {[%clk 0:00:07.6]}
48... Kxd6 {[%clk 0:00:10.1]} 49. Qxh8 {[%clk 0:00:08.2]} 49... Nxh8 {[%clk
0:00:10.6]} 50. Rh7 {[%clk 0:00:06.4]} 50... Ng6 {[%clk 0:00:10.7]} 51. f4
{[%clk 0:00:07.6]} 51... Nxf4+ {[%clk 0:00:11.4]} 52. Kh4 {[%clk 0:00:08.9]}
52... Bf6# {[%clk 0:00:12.1]} 0-1

[Event "*** Titled Tuesday 3|2 Blitz"]
[Site "Chess.com"]
[Date "2016.05.03"]
[Round "8"]
[White "dretch"]
[Black "Smirnov_Pavel"]
[Result "1-0"]
[WhiteElo "2596"]
[BlackElo "2507"]
[TimeControl "180+2"]
[EndTime "12:46:12 PDT"]
[Termination "dretch won on time"]

1. d4 {[%clk 0:03:01.9]} 1... d5 {[%clk 0:03:00.3]} 2. c4 {[%clk 0:03:03]} 2...
e6 {[%clk 0:03:01.5]} 3. Nc3 {[%clk 0:03:03.8]} 3... c6 {[%clk 0:03:02.7]} 4. e3
{[%clk 0:03:02.1]} 4... Nf6 {[%clk 0:03:03.1]} 5. Nf3 {[%clk 0:03:02.4]} 5...
Nbd7 {[%clk 0:03:03.7]} 6. Bd3 {[%clk 0:03:03.1]} 6... dxc4 {[%clk 0:03:04.6]}
7. Bxc4 {[%clk 0:03:05]} 7... b5 {[%clk 0:03:05.9]} 8. Be2 {[%clk 0:03:02.5]}
8... Bb7 {[%clk 0:03:03.3]} 9. O-O {[%clk 0:03:02.6]} 9... b4 {[%clk 0:03:03.2]}
10. Na4 {[%clk 0:03:03.2]} 10... Be7 {[%clk 0:03:03.4]} 11. Qc2 {[%clk
0:02:56.3]} 11... O-O {[%clk 0:03:02.1]} 12. Rd1 {[%clk 0:02:54.8]} 12... Qc7
{[%clk 0:02:31.1]} 13. e4 {[%clk 0:02:48.7]} 13... c5 {[%clk 0:02:26.1]} 14. e5
{[%clk 0:02:47]} 14... Be4 {[%clk 0:01:58.9]} 15. Bd3 {[%clk 0:02:45.7]} 15...
Bxd3 {[%clk 0:01:56.9]} 16. Qxd3 {[%clk 0:02:40.1]} 16... Nd5 {[%clk 0:01:54.9]}
17. Bg5 {[%clk 0:02:39.2]} 17... c4 {[%clk 0:01:48.9]} 18. Qc2 {[%clk
0:02:36.9]} 18... Rfc8 {[%clk 0:01:39.3]} 19. Bxe7 {[%clk 0:02:25.2]} 19... Nxe7
{[%clk 0:01:40.1]} 20. Ng5 {[%clk 0:02:26.5]} 20... Ng6 {[%clk 0:01:38]} 21. Ne4
{[%clk 0:02:27.4]} 21... Nb6 {[%clk 0:01:27]} 22. Nd6 {[%clk 0:02:25.5]} 22...
Rcb8 {[%clk 0:01:08.6]} 23. Nc5 {[%clk 0:02:14.8]} 23... Nxe5 {[%clk 0:00:49.3]}
24. Nde4 {[%clk 0:02:14.2]} 24... Ng4 {[%clk 0:00:43.9]} 25. h3 {[%clk
0:02:06.3]} 25... Qh2+ {[%clk 0:00:38.8]} 26. Kf1 {[%clk 0:02:07.6]} 26... Nh6
{[%clk 0:00:29.7]} 27. Ng5 {[%clk 0:01:40.7]} 27... g6 {[%clk 0:00:19]} 28. Qe4
{[%clk 0:01:19.4]} 28... Nf5 {[%clk 0:00:19.1]} 29. Nf3 {[%clk 0:00:45.3]} 29...
Qd6 {[%clk 0:00:12.5]} 30. g4 {[%clk 0:00:42.3]} 30... Ne7 {[%clk 0:00:11.5]}
31. Qe3 {[%clk 0:00:37.2]} 31... Ned5 {[%clk 0:00:11.6]} 32. Qh6 {[%clk
0:00:37.1]} 32... Qf4 {[%clk 0:00:09.2]} 33. Ng5 {[%clk 0:00:36.7]} 33... Nf6
{[%clk 0:00:10.2]} 34. Nxf7 {[%clk 0:00:29.7]} 34... Qxh6 {[%clk 0:00:07.6]} 35.
Nxh6+ {[%clk 0:00:31]} 35... Kf8 {[%clk 0:00:08.5]} 36. Nxe6+ {[%clk 0:00:32.9]}
36... Ke7 {[%clk 0:00:07.7]} 37. Nc7 {[%clk 0:00:34.8]} 37... Nfd5 {[%clk
0:00:08]} 38. Nxa8 {[%clk 0:00:35.4]} 38... Rxa8 {[%clk 0:00:09.1]} 39. g5
{[%clk 0:00:36.5]} 39... c3 {[%clk 0:00:09.3]} 40. Re1+ {[%clk 0:00:36.4]} 40...
Kd7 {[%clk 0:00:09.8]} 41. bxc3 {[%clk 0:00:37.4]} 41... bxc3 {[%clk 0:00:10.7]}
42. Ng4 {[%clk 0:00:38.7]} 42... Rc8 {[%clk 0:00:10.7]} 43. Rac1 {[%clk
0:00:37.3]} 43... Na4 {[%clk 0:00:09.8]} 44. Nf6+ {[%clk 0:00:33.9]} 44... Kd6
{[%clk 0:00:08.1]} 45. Re5 {[%clk 0:00:34]} 45... Nb4 {[%clk 0:00:04.1]} 46.
Ne4+ {[%clk 0:00:32]} 46... Kd7 {[%clk 0:00:05]} 47. Nc5+ {[%clk 0:00:31.9]}
47... Nxc5 {[%clk 0:00:05.9]} 48. Rxc5 {[%clk 0:00:32.7]} 48... Rxc5 {[%clk
0:00:06.9]} 49. dxc5 {[%clk 0:00:33.9]} 49... Nd5 {[%clk 0:00:08.1]} 50. Ke2
{[%clk 0:00:31.5]} 50... Kc6 {[%clk 0:00:09.4]} 51. Kd3 {[%clk 0:00:32.6]} 51...
Kxc5 {[%clk 0:00:10.8]} 52. h4 {[%clk 0:00:30.6]} 52... a5 {[%clk 0:00:11.5]}
53. a3 {[%clk 0:00:31.1]} 53... a4 {[%clk 0:00:12.3]} 54. Re1 {[%clk 0:00:30.2]}
54... Kd6 {[%clk 0:00:11.5]} 55. Kd4 {[%clk 0:00:30.3]} 1-0

[Event "*** Titled Tuesday 3|2 Blitz"]
[Site "Chess.com"]
[Date "2016.05.03"]
[Round "8"]
[White "Lupul_Cenusiu"]
[Black "smurfo"]
[Result "1-0"]
[WhiteElo "2451"]
[BlackElo "2523"]
[TimeControl "180+2"]
[EndTime "12:46:20 PDT"]
[Termination "Lupul_Cenusiu won by resignation"]

1. d4 {[%clk 0:03:01.9]} 1... d5 {[%clk 0:03:00.6]} 2. Nf3 {[%clk 0:03:01.3]}
2... Nf6 {[%clk 0:03:00.1]} 3. c4 {[%clk 0:03:02.4]} 3... dxc4 {[%clk 0:03:02]}
4. Nc3 {[%clk 0:03:03.5]} 4... a6 {[%clk 0:02:59.8]} 5. a4 {[%clk 0:03:03.4]}
5... Bg4 {[%clk 0:02:57]} 6. e3 {[%clk 0:03:03]} 6... e6 {[%clk 0:02:55.5]} 7.
Bxc4 {[%clk 0:03:02.8]} 7... Nc6 {[%clk 0:02:54.8]} 8. Be2 {[%clk 0:03:02.2]}
8... Bd6 {[%clk 0:02:54.8]} 9. h3 {[%clk 0:03:00.6]} 9... Bh5 {[%clk 0:02:55.2]}
10. O-O {[%clk 0:03:01.6]} 10... O-O {[%clk 0:02:56]} 11. Nd2 {[%clk 0:02:48.3]}
11... Bxe2 {[%clk 0:02:53.3]} 12. Qxe2 {[%clk 0:02:49.3]} 12... e5 {[%clk
0:02:52.7]} 13. d5 {[%clk 0:02:33.9]} 13... Nb4 {[%clk 0:02:53.1]} 14. Qc4
{[%clk 0:02:35]} 14... c6 {[%clk 0:02:43.6]} 15. dxc6 {[%clk 0:02:34]} 15... Rc8
{[%clk 0:02:39.6]} 16. Qb3 {[%clk 0:02:32.5]} 16... Rxc6 {[%clk 0:02:38]} 17.
Nc4 {[%clk 0:02:23.2]} 17... Qe7 {[%clk 0:02:31.7]} 18. Rd1 {[%clk 0:02:18.3]}
18... Rfc8 {[%clk 0:02:26.8]} 19. Nxd6 {[%clk 0:02:11.7]} 19... Rxd6 {[%clk
0:02:28.7]} 20. Bd2 {[%clk 0:02:13]} 20... Nd3 {[%clk 0:02:19.2]} 21. a5 {[%clk
0:02:08.8]} 21... Qd7 {[%clk 0:02:15.2]} 22. Be1 {[%clk 0:02:04.5]} 22... e4
{[%clk 0:01:54.6]} 23. Ne2 {[%clk 0:01:54.7]} 23... Rc5 {[%clk 0:01:44.8]} 24.
Nd4 {[%clk 0:01:48.8]} 24... Rg5 {[%clk 0:01:41.4]} 25. Kf1 {[%clk 0:01:40.4]}
25... Rh5 {[%clk 0:01:29.5]} 26. Rxd3 {[%clk 0:01:12.2]} 26... exd3 {[%clk
0:01:31.4]} 27. Qxd3 {[%clk 0:01:13.4]} 27... h6 {[%clk 0:01:32.8]} 28. Bb4
{[%clk 0:01:07.5]} 28... Rc6 {[%clk 0:01:21.6]} 29. Qe2 {[%clk 0:01:04.7]} 29...
Rc8 {[%clk 0:01:18.5]} 30. Kg1 {[%clk 0:00:55.4]} 30... Rd5 {[%clk 0:01:10.8]}
31. Rd1 {[%clk 0:00:53]} 31... Qa4 {[%clk 0:01:06]} 32. Be1 {[%clk 0:00:50.8]}
32... Qc4 {[%clk 0:00:55.5]} 33. Qf3 {[%clk 0:00:46.5]} 33... Rd7 {[%clk
0:00:52.5]} 34. Bc3 {[%clk 0:00:41.9]} 34... Nd5 {[%clk 0:00:51.1]} 35. Nf5
{[%clk 0:00:33.5]} 35... Rcd8 {[%clk 0:00:21.2]} 36. Bxg7 {[%clk 0:00:31.2]}
36... Qc2 {[%clk 0:00:14.2]} 37. Bd4 {[%clk 0:00:26.2]} 37... Ne7 {[%clk
0:00:14]} 38. Nxh6+ {[%clk 0:00:22.6]} 38... Kh7 {[%clk 0:00:15.2]} 39. Qxf7+
{[%clk 0:00:19.8]} 39... Kxh6 {[%clk 0:00:16.5]} 40. Qg7+ {[%clk 0:00:18.7]}
40... Kh5 {[%clk 0:00:17.7]} 41. Qg4+ {[%clk 0:00:11.2]} 41... Kh6 {[%clk
0:00:18.6]} 42. Qg7+ {[%clk 0:00:12]} 42... Kh5 {[%clk 0:00:20.1]} 43. g4+
{[%clk 0:00:12]} 43... Kh4 {[%clk 0:00:21.5]} 44. Kg2 {[%clk 0:00:13.4]} 44...
Qe4+ {[%clk 0:00:20.7]} 45. Kg1 {[%clk 0:00:11.8]} 45... Qg6 {[%clk 0:00:19.8]}
46. Qe5 {[%clk 0:00:09.5]} 46... Rxd4 {[%clk 0:00:19.2]} 47. Qg3+ {[%clk
0:00:10.2]} 47... Kg5 {[%clk 0:00:19.9]} 48. exd4 {[%clk 0:00:11.4]} 48... Kh6
{[%clk 0:00:21]} 49. Re1 {[%clk 0:00:12.1]} 49... Nd5 {[%clk 0:00:21.4]} 50.
Qh4+ {[%clk 0:00:10.5]} 50... Kg7 {[%clk 0:00:21.9]} 51. Qxd8 {[%clk 0:00:11.9]}
51... Qc6 {[%clk 0:00:15.7]} 52. Qg5+ {[%clk 0:00:11.5]} 52... Kf7 {[%clk
0:00:16.4]} 53. Re5 {[%clk 0:00:11.4]} 53... Nf6 {[%clk 0:00:17]} 54. Rf5 {[%clk
0:00:12.8]} 54... Qe6 {[%clk 0:00:17.7]} 55. Rxf6+ {[%clk 0:00:14]} 1-0

[Event "*** Titled Tuesday 3|2 Blitz"]
[Site "Chess.com"]
[Date "2016.05.03"]
[Round "8"]
[White "kikydu96"]
[Black "alturas_pacificas"]
[Result "0-1"]
[WhiteElo "2274"]
[BlackElo "2182"]
[TimeControl "180+2"]
[EndTime "12:46:35 PDT"]
[Termination "alturas_pacificas won by resignation"]

1. e4 {[%clk 0:03:01.9]} 1... g6 {[%clk 0:03:00.1]} 2. d4 {[%clk 0:03:02.3]}
2... Bg7 {[%clk 0:03:00.6]} 3. Nc3 {[%clk 0:02:49]} 3... d6 {[%clk 0:02:52.6]}
4. Be2 {[%clk 0:02:46.3]} 4... Nd7 {[%clk 0:02:49.6]} 5. h4 {[%clk 0:02:46.6]}
5... h5 {[%clk 0:02:49.5]} 6. Nf3 {[%clk 0:02:47]} 6... a6 {[%clk 0:02:47.7]} 7.
a4 {[%clk 0:02:46.8]} 7... b6 {[%clk 0:02:47.6]} 8. Ng5 {[%clk 0:02:45.9]} 8...
Nh6 {[%clk 0:02:47.4]} 9. Bc4 {[%clk 0:02:43.2]} 9... O-O {[%clk 0:02:45.7]} 10.
f3 {[%clk 0:02:35.4]} 10... Bb7 {[%clk 0:02:42.1]} 11. Be3 {[%clk 0:02:27.1]}
11... e5 {[%clk 0:02:39.4]} 12. Qd2 {[%clk 0:02:08.8]} 12... exd4 {[%clk
0:02:23.1]} 13. Bxd4 {[%clk 0:02:10.7]} 13... Ne5 {[%clk 0:02:23.3]} 14. Bb3
{[%clk 0:02:04.2]} 14... c5 {[%clk 0:02:19]} 15. Bxe5 {[%clk 0:01:58.2]} 15...
dxe5 {[%clk 0:02:19.4]} 16. Bd5 {[%clk 0:01:52.5]} 16... Bxd5 {[%clk 0:02:13.2]}
17. Nxd5 {[%clk 0:01:54.3]} 17... Qd6 {[%clk 0:02:08]} 18. O-O-O {[%clk
0:01:50.4]} 18... f6 {[%clk 0:02:00.3]} 19. Nh3 {[%clk 0:01:42.2]} 19... Nf7
{[%clk 0:01:59.8]} 20. Kb1 {[%clk 0:01:42.8]} 20... b5 {[%clk 0:01:58.1]} 21.
Qa5 {[%clk 0:01:37.9]} 21... bxa4 {[%clk 0:01:52.9]} 22. Nc7 {[%clk 0:01:29.4]}
22... Qc6 {[%clk 0:01:52.5]} 23. Nxa8 {[%clk 0:01:28.1]} 23... Rxa8 {[%clk
0:01:54.4]} 24. Rd5 {[%clk 0:01:26.7]} 24... Bf8 {[%clk 0:01:53.7]} 25. Rhd1
{[%clk 0:01:20.7]} 25... Rb8 {[%clk 0:01:52.7]} 26. Rd7 {[%clk 0:01:04.8]} 26...
Rb5 {[%clk 0:01:49.5]} 27. Qc7 {[%clk 0:00:59]} 27... Qe6 {[%clk 0:01:39]} 28.
R7d5 {[%clk 0:00:50.9]} 28... a3 {[%clk 0:01:27.6]} 29. b3 {[%clk 0:00:51.6]}
29... a5 {[%clk 0:01:07.9]} 30. Ka2 {[%clk 0:00:36.2]} 30... a4 {[%clk
0:01:07.8]} 31. Nf2 {[%clk 0:00:21.5]} 31... axb3+ {[%clk 0:01:04.3]} 32. cxb3
{[%clk 0:00:22.3]} 32... Qa6 {[%clk 0:00:55.4]} 33. Rd7 {[%clk 0:00:22.9]} 33...
Qe6 {[%clk 0:00:25.1]} 34. R1d3 {[%clk 0:00:18.6]} 34... c4 {[%clk 0:00:16.7]}
35. Qxc4 {[%clk 0:00:18.6]} 35... Qxc4 {[%clk 0:00:17.1]} 36. bxc4 {[%clk
0:00:20.5]} 36... Rb2+ {[%clk 0:00:17.5]} 37. Ka1 {[%clk 0:00:21.5]} 37... Rxf2
{[%clk 0:00:19]} 38. Ra7 {[%clk 0:00:21.6]} 38... Rxg2 {[%clk 0:00:18.2]} 39.
Ra8 {[%clk 0:00:20.5]} 39... Rc2 {[%clk 0:00:19.1]} 40. Rdxa3 {[%clk 0:00:20.8]}
40... Rxc4 {[%clk 0:00:20.1]} 41. Kb2 {[%clk 0:00:22.5]} 41... Rc7 {[%clk
0:00:18.5]} 42. Rb3 {[%clk 0:00:21.2]} 42... Kg7 {[%clk 0:00:19.7]} 43. Rbb8
{[%clk 0:00:22.1]} 43... Bc5 {[%clk 0:00:12.3]} 44. Rg8+ {[%clk 0:00:21.5]}
44... Kh7 {[%clk 0:00:13.3]} 45. Kb3 {[%clk 0:00:23.2]} 45... Bd4 {[%clk
0:00:10.2]} 46. Rgf8 {[%clk 0:00:21.8]} 46... g5 {[%clk 0:00:08.8]} 47. hxg5
{[%clk 0:00:21.1]} 47... fxg5 {[%clk 0:00:10.7]} 48. Rg8 {[%clk 0:00:20.8]}
48... h4 {[%clk 0:00:12.1]} 49. Ra2 {[%clk 0:00:20.8]} 49... Rc3+ {[%clk
0:00:12.5]} 50. Kb4 {[%clk 0:00:21.8]} 50... Rxf3 {[%clk 0:00:14]} 51. Rf8
{[%clk 0:00:21.7]} 51... Kg7 {[%clk 0:00:14.9]} 52. Rc8 {[%clk 0:00:22]} 52...
g4 {[%clk 0:00:15.8]} 53. Rg2 {[%clk 0:00:20.7]} 53... g3 {[%clk 0:00:16.3]} 54.
Rcc2 {[%clk 0:00:22.6]} 54... h3 {[%clk 0:00:17.3]} 55. Rgd2 {[%clk 0:00:21.6]}
55... g2 {[%clk 0:00:17.7]} 56. Rxg2+ {[%clk 0:00:22.7]} 56... hxg2 {[%clk
0:00:19.6]} 57. Rxg2+ {[%clk 0:00:24.4]} 57... Kf6 {[%clk 0:00:21.5]} 58. Kc4
{[%clk 0:00:25.8]} 58... Ke6 {[%clk 0:00:21.5]} 59. Rg6+ {[%clk 0:00:25.7]}
59... Rf6 {[%clk 0:00:22.3]} 60. Rg8 {[%clk 0:00:27.2]} 60... Nd6+ {[%clk
0:00:23.2]} 61. Kd3 {[%clk 0:00:28.3]} 61... Rf3+ {[%clk 0:00:24.6]} 62. Ke2
{[%clk 0:00:29.4]} 62... Re3+ {[%clk 0:00:25.9]} 63. Kd2 {[%clk 0:00:30.6]}
63... Nxe4+ {[%clk 0:00:27.5]} 64. Kc2 {[%clk 0:00:31.3]} 64... Nc5 {[%clk
0:00:26.4]} 0-1